fUSD/lending_fUSD_20240327
["ID","MTS","AMOUNT","RATE_DAILY","PERIOD"]
[320780565,1711554648061,-500.0,0.00054246,120]
[320780566,1711554648070,-1808.03,0.00054246,120]
[320780567,1711554648080,-1307.64,0.00054246,120]
[320780568,1711554648090,-500.0,0.00054246,120]
[320780569,1711554648099,-567.43,0.00054246,120]
[320780570,1711554648108,-500.0,0.00054246,120]
[320780571,1711554648118,-500.0,0.00054246,120]
[320780572,1711554648128,-535.11,0.00054246,120]
[320780573,1711554648137,-500.0,0.00054246,15]
[320780574,1711554648147,-500.0,0.00054246,120]
[320780575,1711554648156,-500.0,0.00054246,120]
[320780576,1711554648165,-500.0,0.00054246,120]
[320780577,1711554648175,-500.0,0.00054246,120]
[320780578,1711554648184,-558.88,0.00054246,120]
[320780579,1711554648194,-500.0,0.00054246,120]
[320780580,1711554648203,-500.0,0.00054246,120]
[320780581,1711554648213,-500.0,0.00054246,120]
[320780582,1711554648222,-500.0,0.00054246,120]
[320780583,1711554648231,-829.96,0.00054246,120]
[320780584,1711554648241,-500.0,0.00054246,120]
[320780585,1711554648250,-500.0,0.00054246,120]
[320780586,1711554648259,-500.0,0.00054246,120]
[320780587,1711554648270,-500.0,0.00054246,120]
[320780588,1711554648286,-1395.79,0.00054246,120]
[320780589,1711554648295,-2732.09,0.00054246,120]
[320780590,1711554648304,-500.0,0.00054246,120]
[320780591,1711554648314,-500.0,0.00054246,120]
[320780592,1711554648323,-500.0,0.00054246,120]
[320780593,1711554648333,-500.0,0.00054246,120]
[320780594,1711554648343,-839.62,0.00054246,120]
[320780595,1711554648354,-500.0,0.00054246,120]
[320780596,1711554648363,-500.0,0.00054246,120]
[320780597,1711554648374,-500.0,0.00054246,120]
[320780598,1711554648384,-500.0,0.00054246,120]
[320780599,1711554648394,-922.79,0.00054246,120]
[320780600,1711554648404,-500.0,0.00054246,120]
[320780601,1711554648413,-1172.91,0.00054246,120]
[320780602,1711554648422,-500.0,0.00054246,120]
[320780603,1711554648431,-500.0,0.00054246,120]
[320780604,1711554648441,-514.11,0.00054246,120]
[320780605,1711554648450,-500.0,0.00054246,120]
[320780606,1711554648528,-643.9,0.00054246,120]
[320780607,1711554648542,-947.87,0.00054246,120]
[320780608,1711554648552,-500.0,0.00054246,120]
[320780609,1711554648561,-1305.11,0.00054246,120]
[320780610,1711554648571,-500.0,0.00054246,120]
[320780611,1711554648580,-500.0,0.00054246,120]
[320780612,1711554648590,-533.96,0.00054246,120]
[320780613,1711554648599,-500.0,0.00054246,120]
[320780614,1711554648609,-500.0,0.00054246,120]
[320780615,1711554648618,-500.0,0.00054246,120]
[320780616,1711554648627,-500.0,0.00054246,120]
[320780617,1711554648636,-500.0,0.00054246,120]
[320780618,1711554648645,-877.75,0.00054246,120]
[320780619,1711554648654,-500.0,0.00054246,120]
[320780620,1711554648664,-500.0,0.00054246,120]
[320780621,1711554648674,-500.0,0.00054246,120]
[320780622,1711554648683,-706.46,0.00054246,120]
[320780623,1711554648692,-500.0,0.00054246,120]
[320780624,1711554648701,-500.0,0.00054246,120]
[320780625,1711554648711,-500.0,0.00054246,120]
[320780626,1711554648720,-500.0,0.00054246,120]
[320780627,1711554648729,-500.0,0.00054246,120]
[320780628,1711554648738,-611.94,0.00054246,120]
[320780629,1711554648747,-324.3,0.00054246,120]
[320780630,1711554648756,-865.93,0.00054246,120]
[320780631,1711554648766,-500.0,0.00054246,120]
[320780632,1711554648775,-500.0,0.00054246,120]
[320780633,1711554648785,-500.0,0.00054246,120]
[320780634,1711554648794,-655.96,0.00054246,120]
[320780635,1711554648803,-851.64,0.00054246,120]
[320780636,1711554648813,-1233.8,0.00054246,120]
[320780637,1711554648826,-500.0,0.00054246,120]
[320780638,1711554648842,-545.98,0.00054246,120]
[320780639,1711554648851,-500.0,0.00054246,120]
[320780640,1711554648860,-500.0,0.00054246,120]
[320780641,1711554648869,-1357.15,0.00054246,120]
[320780642,1711554648879,-500.0,0.00054246,120]
[320780643,1711554648888,-654.59,0.00054246,120]
[320780644,1711554648898,-500.0,0.00054246,120]
[320780645,1711554648907,-500.0,0.00054246,120]
[320780646,1711554648916,-500.0,0.00054246,120]
[320780647,1711554648925,-500.0,0.00054246,120]
[320780648,1711554648934,-500.0,0.00054246,120]
[320780649,1711554648943,-675.26,0.00054246,120]
[320780650,1711554648952,-500.0,0.00054246,120]
[320780651,1711554648961,-543.77,0.00054246,120]
[320780652,1711554648970,-500.0,0.00054246,120]
[320780653,1711554648979,-500.0,0.00054246,120]
[320780654,1711554648989,-815.0,0.00054246,120]
[320780655,1711554648998,-500.0,0.00054246,120]
[320780656,1711554649008,-500.0,0.00054246,120]
[320780657,1711554649017,-702.2,0.00054246,120]
[320780658,1711554649028,-500.0,0.00054246,120]
[320780659,1711554649037,-500.0,0.00054246,120]
[320780660,1711554649046,-500.0,0.00054246,120]
[320780661,1711554649055,-631.65,0.00054246,120]
[320780662,1711554649065,-500.0,0.00054246,120]
[320780663,1711554649074,-500.0,0.00054246,120]
[320780664,1711554649084,-932.19,0.00054246,120]
[320780665,1711554649094,-500.0,0.00054246,120]
[320780666,1711554649103,-609.48,0.00054246,120]
[320780667,1711554649112,-500.0,0.00054246,120]
[320780668,1711554649122,-500.0,0.00054246,120]
[320780669,1711554649131,-344.72,0.00054246,120]
[320780670,1711554649141,-529.59,0.00054246,120]
[320780671,1711554649150,-500.0,0.00054246,120]
[320780672,1711554649159,-500.0,0.00054246,120]
[320780673,1711554649168,-500.0,0.00054246,120]
[320780674,1711554649177,-500.0,0.00054246,120]
[320780675,1711554649187,-693.99,0.00054246,30]
[320780676,1711554649196,-500.0,0.00054246,120]
[320780677,1711554649205,-500.0,0.00054246,120]
[320780678,1711554649214,-1310.29,0.00054246,120]
[320780679,1711554649223,-500.0,0.00054246,120]
[320780680,1711554649232,-1241.97,0.00054246,120]
[320780681,1711554649241,-500.0,0.00054246,120]
[320780682,1711554649251,-1054.34,0.00054246,120]
[320780683,1711554649260,-500.0,0.00054246,120]
[320780684,1711554649270,-549.63,0.00054246,120]
[320780685,1711554649280,-713.22,0.00054246,120]
[320780686,1711554649289,-500.0,0.00054246,120]
[320780687,1711554649298,-541.38,0.00054246,120]
[320780688,1711554649308,-505.17321236,0.00054246,120]
[320780689,1711554649317,-1264.08,0.00054246,120]
[320780690,1711554649327,-500.0,0.00054246,120]
[320780691,1711554649336,-500.0,0.00054246,120]
[320780692,1711554649345,-500.0,0.00054246,120]
[320780693,1711554649355,-500.0,0.00054246,120]
[320780694,1711554649365,-500.0,0.00054246,120]
[320780695,1711554649374,-500.0,0.00054246,120]
[320780696,1711554649383,-500.0,0.00054246,120]
[320780697,1711554649393,-797.86,0.00054246,120]
[320780698,1711554649402,-500.0,0.00054246,120]
[320780699,1711554649412,-500.0,0.00054246,120]
[320780700,1711554649421,-500.0,0.00054246,120]
[320780701,1711554649430,-739.13,0.00054246,120]
[320780702,1711554649439,-500.0,0.00054246,120]
[320780703,1711554649448,-602.32,0.00054246,120]
[320780704,1711554649457,-500.0,0.00054246,7]
[320780705,1711554649467,-500.0,0.00054246,120]
[320780706,1711554649476,-652.17,0.00054246,120]
[320780707,1711554649486,-939.11,0.00054246,120]
[320780708,1711554649495,-500.0,0.00054246,120]
[320780709,1711554649504,-500.0,0.00054246,120]
[320780710,1711554649514,-500.0,0.00054246,120]
[320780711,1711554649524,-500.0,0.00054246,120]
[320780712,1711554649533,-500.0,0.00054246,120]
[320780713,1711554649542,-500.0,0.00054246,120]
[320780714,1711554649552,-500.0,0.00054246,120]
[320780715,1711554649561,-500.0,0.00054246,120]
[320780716,1711554649570,-500.0,0.00054246,120]
[320780717,1711554649580,-500.0,0.00054246,120]
[320780718,1711554649589,-500.0,0.00054246,120]
[320780719,1711554649599,-500.0,0.00054246,120]
[320780720,1711554649609,-682.39,0.00054246,120]
[320780721,1711554649618,-1231.57,0.00054246,120]
[320780722,1711554649627,-601.73,0.00054246,120]
[320780723,1711554649637,-500.0,0.00054246,120]
[320780724,1711554649646,-543.72,0.00054246,120]
[320780725,1711554649656,-500.0,0.00054246,120]
[320780726,1711554649665,-696.5,0.00054246,120]
[320780727,1711554649675,-856.06,0.00054246,120]
[320780728,1711554649684,-500.0,0.00054246,120]
[320780729,1711554649694,-500.0,0.00054246,120]
[320780730,1711554649703,-500.0,0.00054246,120]
[320780731,1711554649713,-500.0,0.00054246,120]
[320780732,1711554649722,-500.0,0.00054246,120]
[320780733,1711554649731,-500.0,0.00054246,120]
[320780734,1711554649741,-500.0,0.00054246,120]
[320780735,1711554649750,-500.0,0.00054246,120]
[320780736,1711554649760,-500.0,0.00054246,120]
[320780737,1711554649770,-500.0,0.00054246,120]
[320780738,1711554649779,-500.0,0.00054246,120]
[320780739,1711554649789,-500.0,0.00054246,120]
[320780740,1711554649798,-500.0,0.00054246,120]
[320780741,1711554649807,-619.64,0.00054246,120]
[320780742,1711554649817,-514.56,0.00054246,120]
[320780743,1711554649828,-500.0,0.00054246,120]
[320780744,1711554649838,-500.0,0.00054246,120]
[320780745,1711554649847,-1303.59,0.00054246,120]
[320780746,1711554649856,-500.0,0.00054246,120]
[320780747,1711554649865,-500.0,0.00054246,120]
[320780748,1711554649874,-312.1,0.00054246,120]
[320780749,1711554649883,-500.0,0.00054246,120]
[320780750,1711554649892,-500.0,0.00054246,120]
[320780751,1711554649902,-500.0,0.00054246,120]
[320780752,1711554649911,-500.0,0.00054246,120]
[320780753,1711554649920,-543.1,0.00054246,120]
[320780754,1711554649929,-501.93,0.00054246,120]
[320780755,1711554649939,-500.0,0.00054246,120]
[320780756,1711554649949,-500.0,0.00054246,120]
[320780757,1711554649958,-500.0,0.00054246,120]
[320780758,1711554649968,-1436.74,0.00054246,120]
[320780759,1711554649977,-500.0,0.00054246,120]
[320780760,1711554649987,-500.0,0.00054246,120]
[320780761,1711554649996,-500.0,0.00054246,120]
[320780762,1711554650006,-157.44,0.00054246,120]
[320780763,1711554650016,-500.0,0.00054246,120]
[320780764,1711554650025,-500.0,0.00054246,120]
[320780765,1711554650034,-500.0,0.00054246,120]
[320780766,1711554650043,-1020.14,0.00054246,120]
[320780767,1711554650053,-713.6,0.00054246,120]
[320780768,1711554650062,-403.11,0.00054246,120]
[320780769,1711554650072,-500.0,0.00054246,120]
[320780770,1711554650082,-500.0,0.00054246,120]
[320780771,1711554650092,-500.0,0.00054246,120]
[320780772,1711554650101,-500.0,0.00054246,120]
[320780773,1711554650111,-500.0,0.00054246,120]
[320780774,1711554650120,-500.0,0.00054246,120]
[320780775,1711554650129,-798.21,0.00054246,120]
[320780776,1711554650139,-5949.26,0.00054246,120]
[320780777,1711554650149,-500.0,0.00054246,120]
[320780778,1711554650158,-500.0,0.00054246,120]
[320780779,1711554650168,-571.06,0.00054246,120]
[320780780,1711554650177,-500.0,0.00054246,120]
[320780781,1711554650188,-500.0,0.00054246,120]
[320780782,1711554650198,-970.77,0.00054246,120]
[320780783,1711554650208,-500.0,0.00054246,120]
[320780784,1711554650217,-500.0,0.00054246,120]
[320780785,1711554650226,-582.83,0.00054246,120]
[320780786,1711554650235,-378.17064158,0.00054246,120]
[320780787,1711554650245,-500.0,0.00054246,120]
[320780788,1711554650254,-500.0,0.00054246,120]
[320780789,1711554650264,-607.54,0.00054246,120]
[320780790,1711554650276,-2060.85,0.00054246,120]
[320780791,1711554650286,-7009.44,0.00054246,120]
[320780792,1711554650295,-500.0,0.00054246,120]
[320780793,1711554650304,-500.0,0.00054246,120]
[320780794,1711554650315,-500.0,0.00054246,120]
[320780795,1711554650324,-2470.68,0.00054246,120]
[320780796,1711554650334,-687.91,0.00054246,120]
[320780797,1711554650344,-500.0,0.00054246,120]
[320780798,1711554650353,-500.0,0.00054246,120]
[320780799,1711554650363,-634.56,0.00054246,120]
[320780800,1711554650373,-767.78,0.00054246,120]
[320780801,1711554650383,-500.0,0.00054246,120]
[320780802,1711554650393,-500.0,0.00054246,120]
[320780803,1711554650403,-500.0,0.00054246,120]
[320780804,1711554650412,-500.0,0.00054246,120]
[320780805,1711554650421,-1940.07,0.00054246,120]
[320780806,1711554650431,-500.0,0.00054246,120]
[320780807,1711554650440,-500.0,0.00054246,120]
[320780808,1711554650450,-500.0,0.00054246,120]
[320780809,1711554650459,-500.0,0.00054246,120]
[320780810,1711554650467,-1309.78,0.00054246,120]
[320780811,1711554650477,-2317.84,0.00054246,120]
[320780812,1711554650486,-1547.28,0.00054246,120]
[320780813,1711554650495,-703.46,0.00054246,120]
[320780814,1711554650504,-500.0,0.00054246,120]
[320780815,1711554650513,-737.68,0.00054246,120]
[320780816,1711554650525,-500.0,0.00054246,120]
[320780817,1711554650534,-500.0,0.00054246,120]
[320780818,1711554650543,-500.0,0.00054246,120]
[320780819,1711554650553,-500.0,0.00054246,120]
[320780820,1711554650563,-500.0,0.00054246,120]
[320780821,1711554650572,-500.0,0.00054246,120]
[320780822,1711554650582,-723.45,0.00054246,120]
[320780823,1711554650592,-500.0,0.00054246,120]
[320780824,1711554650602,-1751.89,0.00054246,120]
[320780825,1711554650611,-961.76,0.00054246,120]
[320780826,1711554650620,-1617.75,0.00054246,120]
[320780827,1711554650630,-500.0,0.00054246,120]
[320780828,1711554650640,-500.0,0.00054246,120]
[320780829,1711554650651,-500.0,0.00054246,120]
[320780830,1711554650660,-500.0,0.00054246,120]
[320780831,1711554650670,-500.0,0.00054246,120]
[320780832,1711554650679,-500.0,0.00054246,120]
[320780833,1711554650689,-500.0,0.00054246,120]
[320780834,1711554650698,-2662.3,0.00054246,120]
[320780835,1711554650707,-500.0,0.00054246,120]
[320780836,1711554650717,-1414.39,0.00054246,120]
[320780837,1711554650726,-548.21,0.00054246,120]
[320780838,1711554650736,-6170.01,0.00054246,120]
[320780839,1711554650745,-923.13,0.00054246,120]
[320780840,1711554650754,-4714.95,0.00054246,120]
[320780841,1711554650764,-509.32,0.00054246,120]
[320780842,1711554650774,-1150.53,0.00054246,120]
[320780843,1711554650784,-5534.71,0.00054246,120]
[320780844,1711554650794,-1217.53,0.00054246,120]
[320780845,1711554650803,-500.0,0.00054246,120]
[320780846,1711554650813,-500.0,0.00054246,120]
[320780847,1711554650824,-500.0,0.00054246,120]
[320780848,1711554650834,-594.9,0.00054246,120]
[320780849,1711554650843,-4324.4,0.00054246,120]
[320780850,1711554650852,-500.0,0.00054246,120]
[320780851,1711554650862,-500.0,0.00054246,120]
[320780852,1711554650871,-500.0,0.00054246,120]
[320780853,1711554650880,-500.0,0.00054246,120]
[320780854,1711554650889,-2443.1,0.00054246,120]
[320780855,1711554650900,-500.0,0.00054246,120]
[320780856,1711554650909,-2719.42,0.00054246,120]
[320780857,1711554650918,-500.0,0.00054246,120]
[320780858,1711554650928,-1465.09,0.00054246,120]
[320780859,1711554650937,-500.0,0.00054246,120]
[320780860,1711554650946,-2860.67,0.00054246,120]
[320780861,1711554650955,-500.0,0.00054246,120]
[320780862,1711554650964,-500.0,0.00054246,120]
[320780863,1711554650974,-500.0,0.00054246,120]
[320780864,1711554650984,-2022.14,0.00054246,120]
[320780865,1711554650994,-500.0,0.00054246,120]
[320780866,1711554651003,-500.0,0.00054246,120]
[320780867,1711554651012,-4834.17,0.00054246,120]
[320780868,1711554651024,-500.0,0.00054246,120]
[320780869,1711554651033,-500.0,0.00054246,120]
[320780870,1711554651043,-640.47,0.00054246,120]
[320780871,1711554651053,-500.0,0.00054246,120]
[320780872,1711554651064,-694.35,0.00054246,120]
[320780873,1711554651074,-10649.1,0.00054246,120]
[320780874,1711554651083,-970.88,0.00054246,120]
[320780875,1711554651093,-500.0,0.00054246,120]
[320780876,1711554651103,-500.0,0.00054246,120]
[320780877,1711554651115,-1022.68,0.00054246,120]
[320780878,1711554651125,-500.0,0.00054246,120]
[320780879,1711554651134,-5512.73,0.00054246,120]
[320780880,1711554651144,-1040.0,0.00054246,120]
[320780881,1711554651154,-500.0,0.00054246,120]
[320780882,1711554651164,-500.0,0.00054246,120]
[320780883,1711554651174,-500.0,0.00054246,120]
[320780884,1711554651183,-500.0,0.00054246,120]
[320780885,1711554651193,-629.64,0.00054246,120]
[320780886,1711554651202,-500.0,0.00054246,120]
[320780887,1711554651212,-500.0,0.00054246,120]
[320780888,1711554651221,-500.0,0.00054246,120]
[320780889,1711554651230,-764.55,0.00054246,120]
[320780890,1711554651240,-1647.56,0.00054246,120]
[320780891,1711554651250,-632.02,0.00054246,120]
[320780892,1711554651259,-2205.07,0.00054246,120]
[320780893,1711554651271,-500.0,0.00054246,120]
[320780894,1711554651282,-4941.11035249,0.00054246,120]
[320780895,1711554653288,-4692.52417876,0.00054246,120]
[320780896,1711554653300,-5243.67967554,0.00054246,120]
[320780897,1711554653313,-3719.21667336,0.00054246,120]
[320780898,1711554653396,-424.72957603,0.00019177,2]
[320780899,1711554653405,-10309.88228898,0.00054246,120]
[320780900,1711554653422,-530.05992504,0.00054246,120]
[320780901,1711554653434,-1050.87873394,0.00054246,120]
[320780902,1711554653450,-3041.60352855,0.00054246,120]
[320780903,1711554653462,-347.72085914,0.00054246,120]
[320780904,1711554653490,-337.57999999,0.00054246,120]
[320780905,1711554653504,-19310.26378421,0.00054246,120]
[320780906,1711554653522,-9997.72,0.00054246,120]
[320780907,1711554653531,-500.0,0.00054246,120]
[320780908,1711554653541,-1075.4,0.00054246,120]
[320780909,1711554653550,-500.0,0.00054246,120]
[320780910,1711554653560,-3453.84,0.00054246,120]
[320780911,1711554653570,-500.0,0.00054246,120]
[320780912,1711554653580,-500.0,0.00054246,120]
[320780913,1711554653589,-984.48,0.00054246,120]
[320780914,1711554653599,-500.0,0.00054246,120]
[320780915,1711554653609,-1958.31,0.00054246,120]
[320780916,1711554653618,-1426.27,0.00054246,120]
[320780917,1711554653628,-1360.31,0.00054246,120]
[320780918,1711554653637,-500.0,0.00054246,120]
[320780919,1711554653647,-2676.91,0.00054246,120]
[320780920,1711554653657,-500.0,0.00054246,120]
[320780921,1711554653666,-500.0,0.00054246,120]
[320780922,1711554653675,-500.0,0.00054246,120]
[320780923,1711554653684,-500.0,0.00054246,120]
[320780924,1711554653695,-500.0,0.00054246,120]
[320780925,1711554653705,-500.0,0.00054246,120]
[320780926,1711554653715,-1656.93,0.00054246,120]
[320780927,1711554653725,-500.0,0.00054246,120]
[320780928,1711554653736,-500.0,0.00054246,120]
[320780929,1711554653745,-500.0,0.00054246,120]
[320780930,1711554653757,-494.77289556,0.00054246,120]
[320780931,1711554653770,-500.0,0.00054246,120]
[320780932,1711554653781,-555.3238631,0.00054246,120]
[320780933,1711554653792,-7626.95,0.00054246,120]
[320780934,1711554653802,-4406.29,0.00054246,120]
[320780935,1711554653815,-500.0,0.00054246,120]
[320780936,1711554653827,-500.0,0.00054246,120]
[320780937,1711554653837,-500.0,0.00054246,120]
[320780938,1711554653846,-500.0,0.00054246,120]
[320780939,1711554653858,-500.0,0.00054246,120]
[320780940,1711554653868,-500.0,0.00054246,120]
[320780941,1711554653877,-1000.0,0.00054246,14]
[320780942,1711554653888,-1514.94,0.00054246,120]
[320780943,1711554653898,-500.0,0.00054246,120]
[320780944,1711554653908,-500.0,0.00054246,120]
[320780945,1711554653918,-2405.19,0.00054246,120]
[320780946,1711554653927,-500.0,0.00054246,120]
[320780947,1711554653936,-500.0,0.00054246,120]
[320780948,1711554653946,-500.0,0.00054246,120]
[320780949,1711554653955,-2896.62,0.00054246,120]
[320780950,1711554653965,-554.67,0.00054246,120]
[320780951,1711554653975,-1273.49,0.00054246,120]
[320780952,1711554653984,-1902.6,0.00054246,120]
[320780953,1711554653994,-15700.06,0.00054246,120]
[320780954,1711554654004,-500.0,0.00054246,120]
[320780955,1711554654013,-500.0,0.00054246,120]
[320780956,1711554654024,-500.0,0.00054246,120]
[320780957,1711554654033,-500.0,0.00054246,120]
[320780958,1711554654042,-2520.98,0.00054246,120]
[320780959,1711554654052,-500.0,0.00054246,120]
[320780960,1711554654061,-500.0,0.00054246,120]
[320780961,1711554654071,-500.0,0.00054246,120]
[320780962,1711554654081,-967.24,0.00054246,120]
[320780963,1711554654091,-1216.93,0.00054246,120]
[320780964,1711554654100,-1667.76,0.00054246,120]
[320780965,1711554654111,-500.0,0.00054246,120]
[320780966,1711554654121,-561.98,0.00054246,120]
[320780967,1711554654131,-2261.42,0.00054246,120]
[320780968,1711554654140,-500.0,0.00054246,120]
[320780969,1711554654150,-500.0,0.00054246,120]
[320780970,1711554654161,-2489.24,0.00054246,120]
[320780971,1711554654171,-3712.76,0.00054246,120]
[320780972,1711554654180,-500.0,0.00054246,120]
[320780973,1711554654189,-500.0,0.00054246,120]
[320780974,1711554654199,-500.0,0.00054246,120]
[320780975,1711554654208,-500.0,0.00054246,120]
[320780976,1711554654217,-2292.64,0.00054246,120]
[320780977,1711554654226,-1423.58,0.00054246,120]
[320780978,1711554654236,-632.26,0.00054246,120]
[320780979,1711554654245,-998.04,0.00054246,120]
[320780980,1711554654254,-500.0,0.00054246,120]
[320780981,1711554654263,-500.0,0.00054246,120]
[320780982,1711554654274,-1957.87,0.00054246,120]
[320780983,1711554654284,-540.27,0.00054246,120]
[320780984,1711554654293,-500.0,0.00054246,120]
[320780985,1711554654303,-10277.54,0.00054246,120]
[320780986,1711554654312,-500.0,0.00054246,120]
[320780987,1711554654321,-500.0,0.00054246,120]
[320780988,1711554654330,-3388.35,0.00054246,120]
[320780989,1711554654340,-2908.06,0.00054246,120]
[320780990,1711554654350,-500.0,0.00054246,120]
[320780991,1711554654359,-500.0,0.00054246,120]
[320780992,1711554654368,-3969.57,0.00054246,120]
[320780993,1711554654378,-500.0,0.00054246,120]
[320780994,1711554654388,-792.93,0.00054246,120]
[320780995,1711554654398,-500.0,0.00054246,120]
[320780996,1711554654407,-500.0,0.00054246,120]
[320780997,1711554654417,-1362.61,0.00054246,120]
[320780998,1711554654428,-1314.91,0.00054246,120]
[320780999,1711554654438,-205.34947491,0.00054246,120]
[320781000,1711554654449,-500.0,0.00054246,120]
[320781001,1711554654460,-1467.84,0.00054246,120]
[320781002,1711554654471,-2503.65,0.00054246,120]
[320781003,1711554654481,-500.0,0.00054246,120]
[320781004,1711554654491,-3835.79,0.00054246,120]
[320781005,1711554654501,-1738.45,0.00054246,120]
[320781006,1711554654512,-630.64,0.00054246,120]
[320781007,1711554654523,-1014.6,0.00054246,120]
[320781008,1711554654532,-2013.47,0.00054246,120]
[320781009,1711554654542,-1443.28,0.00054246,120]
[320781010,1711554654552,-500.0,0.00054246,120]
[320781011,1711554654561,-500.0,0.00054246,120]
[320781012,1711554654571,-1599.18,0.00054246,120]
[320781013,1711554654581,-5053.17,0.00054246,120]
[320781014,1711554654591,-605.02,0.00054246,120]
[320781015,1711554654601,-500.0,0.00054246,120]
[320781016,1711554654610,-500.0,0.00054246,120]
[320781017,1711554654622,-2549.67,0.00054246,120]
[320781018,1711554654633,-500.0,0.00054246,120]
[320781019,1711554654643,-35929.86,0.00054246,120]
[320781020,1711554654653,-4114.72,0.00054246,120]
[320781021,1711554654664,-500.0,0.00054246,120]
[320781022,1711554654675,-500.0,0.00054246,120]
[320781023,1711554654685,-500.0,0.00054246,120]
[320781024,1711554654697,-500.0,0.00054246,7]
[320781025,1711554654707,-500.0,0.00054246,120]
[320781026,1711554654719,-2647.91,0.00054246,120]
[320781027,1711554654730,-500.0,0.00054246,120]
[320781028,1711554654739,-1015.38,0.00054246,120]
[320781029,1711554654749,-1315.23037079,0.00054246,120]
[320781030,1711554654760,-500.0,0.00054246,120]
[320781031,1711554654772,-3764.84,0.00054246,120]
[320781032,1711554654782,-10409.04,0.00054246,120]
[320781033,1711554654792,-4003.96,0.00054246,120]
[320781034,1711554654803,-1004.92,0.00054246,120]
[320781035,1711554654813,-500.0,0.00054246,120]
[320781036,1711554654824,-36330.28,0.00054246,120]
[320781037,1711554654834,-3713.25,0.00054246,120]
[320781038,1711554654845,-500.0,0.00054246,120]
[320781039,1711554654855,-500.0,0.00054246,120]
[320781040,1711554654866,-500.0,0.00054246,120]
[320781041,1711554654876,-500.0,0.00054246,120]
[320781042,1711554654887,-500.0,0.00054246,120]
[320781043,1711554654900,-500.0,0.00054246,120]
[320781044,1711554654910,-588.34,0.00054246,120]
[320781045,1711554654921,-1907.17,0.00054246,120]
[320781046,1711554654932,-4150.88,0.00054246,120]
[320781047,1711554654943,-2698.14,0.00054246,120]
[320781048,1711554654954,-606.07,0.00054246,120]
[320781049,1711554654964,-6310.64,0.00054246,120]
[320781050,1711554654975,-3393.8,0.00054246,120]
[320781051,1711554654985,-500.0,0.00054246,120]
[320781052,1711554654995,-500.0,0.00054246,120]
[320781053,1711554655006,-500.0,0.00054246,120]
[320781054,1711554655017,-500.0,0.00054246,120]
[320781055,1711554655031,-530.1,0.00054246,120]
[320781056,1711554655041,-500.0,0.00054246,120]
[320781057,1711554655052,-500.0,0.00054246,120]
[320781058,1711554655062,-500.0,0.00054246,120]
[320781059,1711554655072,-500.0,0.00054246,120]
[320781060,1711554655083,-500.0,0.00054246,120]
[320781061,1711554655093,-500.0,0.00054246,120]
[320781062,1711554655103,-2033.28,0.00054246,120]
[320781063,1711554655113,-500.0,0.00054246,120]
[320781064,1711554655124,-5049.9,0.00054246,120]